[Event "January 9 Late 2024"]
[Site "https://www.chess.com"]
[Date "2024.01.09"]
[Round "10"]
[White "Vlassov, Nikolai"]
[Black "Storn, Justin"]
[Result "1-0"]
[Board "90"]
[TimeControl "180+1"]
[WhiteFideId "4103360"]
[BlackFideId "30922720"]
[WhiteElo "2623"]
[BlackElo "2426"]
[WhiteTeam "FID"]
[BlackTeam "USA"]
[WhiteClock "0:00:42"]
[BlackClock "0:00:01"]

1. e4 {[%clk 0:03:00]}  e6 {[%clk 0:00:44]} 2. d4 {[%clk 0:03:00]}  d5 {[%clk 0:00:45]} 3. e5 {[%clk 0:03:00]}  c5 {[%clk 0:00:45]} 4. c3 {[%clk 0:03:00]}  Qb6 {[%clk 0:00:43]} 5. Nf3 {[%clk 0:03:00]}  Nc6 {[%clk 0:00:44]} 6. Be2 {[%clk 0:02:59]}  cxd4 {[%clk 0:00:43]} 7. cxd4 {[%clk 0:02:59]}  Nge7 {[%clk 0:00:43]} 8. Na3 {[%clk 0:02:56]}  Nf5 {[%clk 0:00:43]} 9. Nc2 {[%clk 0:02:56]}  Bd7 {[%clk 0:00:40]} 10. O-O {[%clk 0:02:56]}  a5 {[%clk 0:00:40]} 11. g4 {[%clk 0:02:48]}  Nh6 {[%clk 0:00:39]} 12. h3 {[%clk 0:02:47]}  f6 {[%clk 0:00:32]} 13. Bd3 {[%clk 0:02:45]}  fxe5 {[%clk 0:00:29]} 14. Nxe5 {[%clk 0:02:21]}  Nxe5 {[%clk 0:00:26]} 15. dxe5 {[%clk 0:02:21]}  Nf7 {[%clk 0:00:26]} 16. Qe2 {[%clk 0:02:17]}  Be7 {[%clk 0:00:20]} 17. Be3 {[%clk 0:02:13]}  Qc7 {[%clk 0:00:20]} 18. f4 {[%clk 0:02:12]}  g5 {[%clk 0:00:18]} 19. Nd4 {[%clk 0:02:00]}  gxf4 {[%clk 0:00:17]} 20. Bxf4 {[%clk 0:02:01]}  Qb6 {[%clk 0:00:13]} 21. Be3 {[%clk 0:01:49]}  Qc7 {[%clk 0:00:13]} 22. Nf3 {[%clk 0:01:40]}  O-O-O {[%clk 0:00:11]} 23. Rac1 {[%clk 0:01:34]}  Bc6 {[%clk 0:00:12]} 24. Bb5 {[%clk 0:01:31]}  Kb8 {[%clk 0:00:11]} 25. Bxc6 {[%clk 0:01:21]}  bxc6 {[%clk 0:00:12]} 26. Qa6 {[%clk 0:01:21]}  c5 {[%clk 0:00:12]} 27. Qxe6 {[%clk 0:01:16]}  Rhf8 {[%clk 0:00:13]} 28. Rc3 {[%clk 0:01:00]}  Ka8 {[%clk 0:00:07]} 29. Qa6+ {[%clk 0:00:47]}  Qa7 {[%clk 0:00:05]} 30. Qxa7+ {[%clk 0:00:46]}  Kxa7 {[%clk 0:00:06]} 31. Bxc5+ {[%clk 0:00:45]}  Bxc5+ {[%clk 0:00:06]} 32. Rxc5 {[%clk 0:00:46]}  d4 {[%clk 0:00:05]} 33. e6 {[%clk 0:00:42]}  Nh6 {[%clk 0:00:01]} 34. e7 {[%clk 0:00:42]} 1-0

[Event "January 9 Late 2024"]
[Site "https://www.chess.com"]
[Date "2024.01.09"]
[Round "10"]
[White "Gubajdullin, Alexei"]
[Black "Avalos Parra, Joao"]
[Result "1-0"]
[Board "91"]
[TimeControl "180+1"]
[WhiteFideId "4141202"]
[BlackFideId "3402541"]
[WhiteElo "2610"]
[BlackElo "2413"]
[WhiteTeam "RUS"]
[BlackTeam "CHI"]
[WhiteClock "0:00:17"]
[BlackClock "0:00:04"]

1. e4 {[%clk 0:02:59]}  e5 {[%clk 0:02:58]} 2. d4 {[%clk 0:02:58]}  exd4 {[%clk 0:02:57]} 3. Nf3 {[%clk 0:02:58]}  Nc6 {[%clk 0:02:58]} 4. Bc4 {[%clk 0:02:58]}  Nf6 {[%clk 0:02:56]} 5. e5 {[%clk 0:02:57]}  d5 {[%clk 0:02:56]} 6. Bb5 {[%clk 0:02:57]}  Ne4 {[%clk 0:02:56]} 7. Nxd4 {[%clk 0:02:57]}  Bd7 {[%clk 0:02:57]} 8. Bxc6 {[%clk 0:02:56]}  bxc6 {[%clk 0:02:58]} 9. O-O {[%clk 0:02:55]}  Bc5 {[%clk 0:02:58]} 10. f3 {[%clk 0:02:52]}  Ng5 {[%clk 0:02:57]} 11. f4 {[%clk 0:02:50]}  Ne4 {[%clk 0:02:30]} 12. Be3 {[%clk 0:02:50]}  Qb8 {[%clk 0:02:16]} 13. Nd2 {[%clk 0:02:29]}  Qxb2 {[%clk 0:02:07]} 14. Nxe4 {[%clk 0:02:29]}  dxe4 {[%clk 0:02:01]} 15. Nf5 {[%clk 0:02:20]}  Bxf5 {[%clk 0:01:50]} 16. Bxc5 {[%clk 0:02:19]}  Qc3 {[%clk 0:01:40]} 17. Qd4 {[%clk 0:02:12]}  Qxd4+ {[%clk 0:01:33]} 18. Bxd4 {[%clk 0:02:12]}  h5 {[%clk 0:01:34]} 19. Rab1 {[%clk 0:02:10]}  c5 {[%clk 0:01:20]} 20. Bxc5 {[%clk 0:02:07]}  Rh6 {[%clk 0:01:17]} 21. c3 {[%clk 0:01:52]}  Ra6 {[%clk 0:01:07]} 22. Rb2 {[%clk 0:01:45]}  Rd8 {[%clk 0:01:06]} 23. Bd4 {[%clk 0:01:44]}  Ra5 {[%clk 0:01:00]} 24. e6 {[%clk 0:01:28]}  Bxe6 {[%clk 0:00:57]} 25. Bxg7 {[%clk 0:01:27]}  f5 {[%clk 0:00:56]} 26. Bd4 {[%clk 0:01:23]}  c5 {[%clk 0:00:55]} 27. Be5 {[%clk 0:01:22]}  Rxa2 {[%clk 0:00:52]} 28. Rxa2 {[%clk 0:01:15]}  Bxa2 {[%clk 0:00:53]} 29. Kf2 {[%clk 0:01:00]}  Rd2+ {[%clk 0:00:52]} 30. Kg3 {[%clk 0:01:00]}  e3 {[%clk 0:00:31]} 31. Re1 {[%clk 0:00:52]}  e2 {[%clk 0:00:31]} 32. c4 {[%clk 0:00:33]}  Bxc4 {[%clk 0:00:26]} 33. Bc3 {[%clk 0:00:32]}  Rc2 {[%clk 0:00:26]} 34. Ba5 {[%clk 0:00:32]}  Bd3 {[%clk 0:00:24]} 35. Kh4 {[%clk 0:00:30]}  Ra2 {[%clk 0:00:22]} 36. Bc3 {[%clk 0:00:28]}  Ra4 {[%clk 0:00:19]} 37. Be5 {[%clk 0:00:26]}  c4 {[%clk 0:00:15]} 38. Kxh5 {[%clk 0:00:26]}  Ra3 {[%clk 0:00:16]} 39. h3 {[%clk 0:00:25]}  c3 {[%clk 0:00:16]} 40. g4 {[%clk 0:00:25]}  fxg4 {[%clk 0:00:10]} 41. hxg4 {[%clk 0:00:25]}  c2 {[%clk 0:00:10]} 42. f5 {[%clk 0:00:25]}  Ra5 {[%clk 0:00:09]} 43. Bf4 {[%clk 0:00:24]}  Rb5 {[%clk 0:00:08]} 44. Kg5 {[%clk 0:00:23]}  Rb1 {[%clk 0:00:08]} 45. Bc1 {[%clk 0:00:21]}  a5 {[%clk 0:00:08]} 46. Kf6 {[%clk 0:00:21]}  a4 {[%clk 0:00:08]} 47. g5 {[%clk 0:00:22]}  a3 {[%clk 0:00:08]} 48. g6 {[%clk 0:00:22]}  a2 {[%clk 0:00:08]} 49. g7 {[%clk 0:00:22]}  Bc4 {[%clk 0:00:06]} 50. Rxe2+ {[%clk 0:00:22]}  Kd7 {[%clk 0:00:05]} 51. Rd2+ {[%clk 0:00:23]}  Kc6 {[%clk 0:00:05]} 52. Rxc2 {[%clk 0:00:23]}  a1=Q+ {[%clk 0:00:05]} 53. Kg6 {[%clk 0:00:22]}  Rxc1 {[%clk 0:00:01]} 54. g8=Q {[%clk 0:00:22]}  Rxc2 {[%clk 0:00:01]} 55. Qe8+ {[%clk 0:00:22]}  Kc5 {[%clk 0:00:02]} 56. Qe7+ {[%clk 0:00:22]}  Kb5 {[%clk 0:00:02]} 57. Qb7+ {[%clk 0:00:21]}  Kc5 {[%clk 0:00:03]} 58. Qe7+ {[%clk 0:00:21]}  Kd5 {[%clk 0:00:03]} 59. Qd7+ {[%clk 0:00:21]}  Ke4 {[%clk 0:00:04]} 60. Qc6+ {[%clk 0:00:21]}  Kd3 {[%clk 0:00:04]} 61. Qf3+ {[%clk 0:00:21]}  Kd2 {[%clk 0:00:04]} 62. Qf4+ {[%clk 0:00:21]}  Kc3 {[%clk 0:00:05]} 63. Qe5+ {[%clk 0:00:20]}  Kd3 {[%clk 0:00:05]} 64. Qxa1 {[%clk 0:00:20]}  Rc3 {[%clk 0:00:06]} 65. Qd1+ {[%clk 0:00:19]}  Ke4 {[%clk 0:00:06]} 66. Qe1+ {[%clk 0:00:19]}  Kd4 {[%clk 0:00:07]} 67. Qf2+ {[%clk 0:00:18]}  Kd5 {[%clk 0:00:07]} 68. f6 {[%clk 0:00:17]}  Bd3+ {[%clk 0:00:06]} 69. Kg7 {[%clk 0:00:17]}  Rc2 {[%clk 0:00:06]} 70. Qf3+ {[%clk 0:00:17]}  Be4 {[%clk 0:00:06]} 71. Qb3+ {[%clk 0:00:16]}  Ke5 {[%clk 0:00:05]} 72. Qxc2 {[%clk 0:00:16]}  Bxc2 {[%clk 0:00:04]} 73. f7 {[%clk 0:00:17]} 1-0

[Event "January 9 Late 2024"]
[Site "https://www.chess.com"]
[Date "2024.01.09"]
[Round "10"]
[White "Figorito, Nick"]
[Black "Bjelobrk, Igor"]
[Result "1-0"]
[Board "92"]
[TimeControl "180+1"]
[WhiteFideId "30923689"]
[BlackFideId "4300726"]
[WhiteElo "2409"]
[BlackElo "2589"]
[WhiteTeam "USA"]
[BlackTeam "AUS"]
[WhiteClock "0:00:40"]
[BlackClock "0:00:15"]

1. Nf3 {[%clk 0:03:00]}  c5 {[%clk 0:02:56]} 2. g3 {[%clk 0:03:00]}  g6 {[%clk 0:02:54]} 3. Bg2 {[%clk 0:03:00]}  Bg7 {[%clk 0:02:54]} 4. O-O {[%clk 0:03:01]}  Nc6 {[%clk 0:02:50]} 5. c4 {[%clk 0:03:01]}  d6 {[%clk 0:02:44]} 6. Nc3 {[%clk 0:03:01]}  Bf5 {[%clk 0:02:43]} 7. d3 {[%clk 0:02:58]}  Qd7 {[%clk 0:02:42]} 8. a3 {[%clk 0:02:51]}  Bh3 {[%clk 0:02:40]} 9. Rb1 {[%clk 0:02:49]}  Bxg2 {[%clk 0:02:40]} 10. Kxg2 {[%clk 0:02:50]}  h5 {[%clk 0:02:39]} 11. h4 {[%clk 0:02:48]}  Nh6 {[%clk 0:02:38]} 12. Nd5 {[%clk 0:02:43]}  e6 {[%clk 0:02:34]} 13. Bxh6 {[%clk 0:02:41]}  Rxh6 {[%clk 0:02:34]} 14. Nf4 {[%clk 0:02:35]}  a5 {[%clk 0:02:27]} 15. Ne1 {[%clk 0:02:14]}  Rb8 {[%clk 0:02:25]} 16. Nc2 {[%clk 0:02:13]}  b5 {[%clk 0:02:25]} 17. b4 {[%clk 0:02:02]}  axb4 {[%clk 0:02:23]} 18. axb4 {[%clk 0:02:02]}  bxc4 {[%clk 0:02:21]} 19. bxc5 {[%clk 0:01:55]}  c3 {[%clk 0:02:07]} 20. Rxb8+ {[%clk 0:01:52]}  Nxb8 {[%clk 0:02:08]} 21. cxd6 {[%clk 0:01:47]}  Qxd6 {[%clk 0:02:05]} 22. Ne3 {[%clk 0:01:45]}  Rh8 {[%clk 0:02:02]} 23. Qa4+ {[%clk 0:01:38]}  Qc6+ {[%clk 0:02:01]} 24. Qxc6+ {[%clk 0:01:37]}  Nxc6 {[%clk 0:02:02]} 25. Rc1 {[%clk 0:01:35]}  Kd7 {[%clk 0:01:58]} 26. Nd1 {[%clk 0:01:34]}  Rc8 {[%clk 0:01:45]} 27. Nxc3 {[%clk 0:01:25]}  Nb4 {[%clk 0:01:44]} 28. d4 {[%clk 0:00:54]}  Bxd4 {[%clk 0:01:24]} 29. Rd1 {[%clk 0:00:54]}  e5 {[%clk 0:01:24]} 30. Nb5 {[%clk 0:00:51]}  exf4 {[%clk 0:00:18]} 31. Rxd4+ {[%clk 0:00:51]}  Kc6 {[%clk 0:00:18]} 32. Rxb4 {[%clk 0:00:48]}  Kc5 {[%clk 0:00:18]} 33. Rc4+ {[%clk 0:00:40]}  Kxc4 {[%clk 0:00:17]} 34. Nd6+ {[%clk 0:00:41]}  Kd5 {[%clk 0:00:18]} 35. Nxc8 {[%clk 0:00:42]}  fxg3 {[%clk 0:00:18]} 36. Kxg3 {[%clk 0:00:40]}  f6 {[%clk 0:00:15]} 37. Ne7+ {[%clk 0:00:40]} 1-0

[Event "January 9 Late 2024"]
[Site "https://www.chess.com"]
[Date "2024.01.09"]
[Round "10"]
[White "Rogov, Matfey"]
[Black "Paragua, Megan Althea"]
[Result "1-0"]
[Board "94"]
[TimeControl "180+1"]
[WhiteFideId "44191308"]
[BlackFideId "30973007"]
[WhiteElo "2561"]
[BlackElo "2400"]
[WhiteTeam "RUS"]
[BlackTeam "USA"]
[WhiteClock "0:00:39"]
[BlackClock "0:00:09"]

1. e4 {[%clk 0:03:00]}  c5 {[%clk 0:02:59]} 2. Nc3 {[%clk 0:02:58]}  d6 {[%clk 0:02:58]} 3. f4 {[%clk 0:02:58]}  Nf6 {[%clk 0:02:58]} 4. Nf3 {[%clk 0:02:58]}  e6 {[%clk 0:02:57]} 5. Bb5+ {[%clk 0:02:54]}  Bd7 {[%clk 0:02:56]} 6. Bxd7+ {[%clk 0:02:53]}  Qxd7 {[%clk 0:02:56]} 7. d4 {[%clk 0:02:53]}  cxd4 {[%clk 0:02:55]} 8. Qxd4 {[%clk 0:02:54]}  Nc6 {[%clk 0:02:53]} 9. Qf2 {[%clk 0:02:55]}  Be7 {[%clk 0:02:53]} 10. h3 {[%clk 0:02:55]}  h5 {[%clk 0:02:48]} 11. Be3 {[%clk 0:02:54]}  a6 {[%clk 0:02:47]} 12. Rd1 {[%clk 0:02:48]}  Qc7 {[%clk 0:02:38]} 13. f5 {[%clk 0:02:44]}  exf5 {[%clk 0:02:34]} 14. exf5 {[%clk 0:02:44]}  b5 {[%clk 0:02:33]} 15. O-O {[%clk 0:02:42]}  O-O {[%clk 0:02:20]} 16. Bg5 {[%clk 0:02:39]}  Qa7 {[%clk 0:02:14]} 17. Be3 {[%clk 0:02:31]}  Qc7 {[%clk 0:02:11]} 18. Qg3 {[%clk 0:02:28]}  Kh8 {[%clk 0:01:57]} 19. Bg5 {[%clk 0:02:20]}  b4 {[%clk 0:01:54]} 20. Bxf6 {[%clk 0:02:03]}  Bxf6 {[%clk 0:01:53]} 21. Nd5 {[%clk 0:02:03]}  Qa7+ {[%clk 0:01:47]} 22. Kh1 {[%clk 0:02:02]}  Bxb2 {[%clk 0:01:43]} 23. f6 {[%clk 0:01:57]}  g6 {[%clk 0:01:34]} 24. Qf4 {[%clk 0:01:52]}  Kh7 {[%clk 0:01:33]} 25. Ng5+ {[%clk 0:01:52]}  Kg8 {[%clk 0:01:32]} 26. Ne4 {[%clk 0:01:33]}  Kh7 {[%clk 0:01:29]} 27. Qh4 {[%clk 0:01:16]}  Rae8 {[%clk 0:01:23]} 28. Rf5 {[%clk 0:00:53]}  Re5 {[%clk 0:00:50]} 29. Rxe5 {[%clk 0:00:53]}  Bxe5 {[%clk 0:00:40]} 30. Ng5+ {[%clk 0:00:53]}  Kg8 {[%clk 0:00:40]} 31. Qc4 {[%clk 0:00:53]}  Rc8 {[%clk 0:00:28]} 32. Rf1 {[%clk 0:00:53]}  Kh8 {[%clk 0:00:18]} 33. Ne7 {[%clk 0:00:49]}  Nxe7 {[%clk 0:00:18]} 34. fxe7 {[%clk 0:00:50]}  Rxc4 {[%clk 0:00:14]} 35. e8=Q+ {[%clk 0:00:49]}  Kg7 {[%clk 0:00:14]} 36. Rxf7+ {[%clk 0:00:50]}  Kh6 {[%clk 0:00:12]} 37. Rxa7 {[%clk 0:00:39]}  Rxc2 {[%clk 0:00:12]} 38. Nf7+ {[%clk 0:00:38]}  Kg7 {[%clk 0:00:09]} 39. Nxe5+ {[%clk 0:00:39]} 1-0

[Event "January 9 Late 2024"]
[Site "https://www.chess.com"]
[Date "2024.01.09"]
[Round "10"]
[White "Lemos, Dawton Almino"]
[Black "Mullodzhanov, Nathaniel"]
[Result "0-1"]
[Board "98"]
[TimeControl "180+1"]
[WhiteFideId "2146797"]
[BlackFideId "30961580"]
[WhiteElo "2362"]
[BlackElo "2505"]
[WhiteTeam "BRA"]
[BlackTeam "USA"]
[WhiteClock "0:00:00"]
[BlackClock "0:01:45"]

1. e4 {[%clk 0:03:00]}  c6 {[%clk 0:02:59]} 2. d3 {[%clk 0:02:55]}  d5 {[%clk 0:03:00]} 3. Nd2 {[%clk 0:02:54]}  dxe4 {[%clk 0:02:59]} 4. dxe4 {[%clk 0:02:53]}  Nf6 {[%clk 0:02:59]} 5. Ngf3 {[%clk 0:02:53]}  Bg4 {[%clk 0:02:58]} 6. h3 {[%clk 0:02:47]}  Bxf3 {[%clk 0:02:57]} 7. Qxf3 {[%clk 0:02:44]}  e6 {[%clk 0:02:57]} 8. Be2 {[%clk 0:02:30]}  Nbd7 {[%clk 0:02:57]} 9. O-O {[%clk 0:02:24]}  Bd6 {[%clk 0:02:57]} 10. Nc4 {[%clk 0:02:20]}  Bc7 {[%clk 0:02:55]} 11. a4 {[%clk 0:02:18]}  b5 {[%clk 0:02:53]} 12. Nd2 {[%clk 0:02:14]}  Ne5 {[%clk 0:02:53]} 13. Qc3 {[%clk 0:01:58]}  a6 {[%clk 0:02:30]} 14. f4 {[%clk 0:01:23]}  Bb6+ {[%clk 0:02:20]} 15. Kh2 {[%clk 0:01:21]}  Bd4 {[%clk 0:02:20]} 16. Qg3 {[%clk 0:01:19]}  Ng6 {[%clk 0:02:19]} 17. Nb3 {[%clk 0:01:12]}  Bb6 {[%clk 0:02:16]} 18. axb5 {[%clk 0:00:50]}  axb5 {[%clk 0:02:12]} 19. Be3 {[%clk 0:00:35]}  Nxe4 {[%clk 0:02:02]} 20. Qf3 {[%clk 0:00:30]}  Bxe3 {[%clk 0:01:59]} 21. Qxe4 {[%clk 0:00:17]}  Bxf4+ {[%clk 0:01:49]} 22. Rxf4 {[%clk 0:00:15]}  Rxa1 {[%clk 0:01:48]} 23. Nxa1 {[%clk 0:00:06]}  Qd6 {[%clk 0:01:48]} 24. g3 {[%clk 0:00:05]}  Nxf4 {[%clk 0:01:48]} 25. Qxf4 {[%clk 0:00:05]}  Qxf4 {[%clk 0:01:47]} 26. gxf4 {[%clk 0:00:06]}  Ke7 {[%clk 0:01:47]} 27. Nb3 {[%clk 0:00:06]}  Ra8 {[%clk 0:01:46]} 28. Bf3 {[%clk 0:00:06]}  Ra2 {[%clk 0:01:45]} 29. Bxc6 {[%clk 0:00:05]}  Rxb2 {[%clk 0:01:45]} 30. Bxb5 {[%clk 0:00:05]}  Rxc2+ {[%clk 0:01:45]} 31. Kg3 {[%clk 0:00:00]}  Rc3+ {[%clk 0:01:45]} 0-1

[Event "January 9 Late 2024"]
[Site "https://www.chess.com"]
[Date "2024.01.09"]
[Round "10"]
[White "Tqebuchava, Zurab"]
[Black "Mizzi, Jack"]
[Result "0-1"]
[Board "100"]
[TimeControl "180+1"]
[WhiteFideId "13601113"]
[BlackFideId "5602521"]
[WhiteElo "2201"]
[BlackElo "2489"]
[WhiteTeam "GEO"]
[BlackTeam "MLT"]
[WhiteClock "0:00:21"]
[BlackClock "0:02:17"]

1. e4 {[%clk 0:03:00]}  c6 {[%clk 0:03:00]} 2. d4 {[%clk 0:02:59]}  d5 {[%clk 0:03:00]} 3. exd5 {[%clk 0:02:59]}  cxd5 {[%clk 0:03:00]} 4. Bd3 {[%clk 0:02:59]}  Nc6 {[%clk 0:03:00]} 5. c3 {[%clk 0:02:59]}  Qc7 {[%clk 0:03:00]} 6. h3 {[%clk 0:02:57]}  Nf6 {[%clk 0:03:00]} 7. Nf3 {[%clk 0:02:57]}  g6 {[%clk 0:03:00]} 8. O-O {[%clk 0:02:53]}  Bf5 {[%clk 0:02:59]} 9. Bxf5 {[%clk 0:02:46]}  gxf5 {[%clk 0:03:00]} 10. Re1 {[%clk 0:02:47]}  e6 {[%clk 0:03:00]} 11. Bg5 {[%clk 0:02:37]}  Ne4 {[%clk 0:02:57]} 12. Be3 {[%clk 0:02:28]}  f4 {[%clk 0:02:54]} 13. Bc1 {[%clk 0:02:24]}  O-O-O {[%clk 0:02:49]} 14. a4 {[%clk 0:02:13]}  Rg8 {[%clk 0:02:45]} 15. a5 {[%clk 0:02:07]}  f5 {[%clk 0:02:36]} 16. a6 {[%clk 0:02:05]}  Qg7 {[%clk 0:02:34]} 17. axb7+ {[%clk 0:01:55]}  Kb8 {[%clk 0:02:33]} 18. Nh4 {[%clk 0:01:52]}  Qg5 {[%clk 0:02:31]} 19. g3 {[%clk 0:01:09]}  Nxf2 {[%clk 0:02:27]} 20. Qf3 {[%clk 0:00:56]}  Qxg3+ {[%clk 0:02:24]} 21. Qxg3 {[%clk 0:00:54]}  fxg3 {[%clk 0:02:23]} 22. Bf4+ {[%clk 0:00:51]}  Kxb7 {[%clk 0:02:22]} 23. Kg2 {[%clk 0:00:37]}  Nd3 {[%clk 0:02:20]} 24. Rf1 {[%clk 0:00:32]}  Be7 {[%clk 0:02:19]} 25. Rf3 {[%clk 0:00:21]}  Ne1+ {[%clk 0:02:17]} 0-1

[Event "January 9 Late 2024"]
[Site "https://www.chess.com"]
[Date "2024.01.10"]
[Round "10"]
[White "Kraiouchkine, Nikita"]
[Black "Goncalves, Samuel Jesus P"]
[Result "1-0"]
[Board "104"]
[TimeControl "180+1"]
[WhiteFideId "2607140"]
[BlackFideId "1945130"]
[WhiteElo "2602"]
[BlackElo "2396"]
[WhiteTeam "CAN"]
[BlackTeam "POR"]
[WhiteClock "0:00:37"]
[BlackClock "0:00:12"]

1. e4 {[%clk 0:03:00]}  d5 {[%clk 0:02:59]} 2. exd5 {[%clk 0:03:01]}  Qxd5 {[%clk 0:03:00]} 3. Nc3 {[%clk 0:03:01]}  Qa5 {[%clk 0:03:00]} 4. d4 {[%clk 0:03:01]}  c6 {[%clk 0:03:01]} 5. Nf3 {[%clk 0:03:02]}  Nf6 {[%clk 0:03:01]} 6. Bc4 {[%clk 0:03:01]}  Bf5 {[%clk 0:03:00]} 7. Bd2 {[%clk 0:03:01]}  Qc7 {[%clk 0:02:51]} 8. Ne5 {[%clk 0:02:58]}  e6 {[%clk 0:02:49]} 9. g4 {[%clk 0:02:54]}  Bg6 {[%clk 0:02:41]} 10. h4 {[%clk 0:02:53]}  Nbd7 {[%clk 0:02:38]} 11. Bf4 {[%clk 0:02:46]}  Bd6 {[%clk 0:02:29]} 12. Qe2 {[%clk 0:02:40]}  b5 {[%clk 0:01:26]} 13. Bxe6 {[%clk 0:02:28]}  fxe6 {[%clk 0:01:23]} 14. Nxg6 {[%clk 0:02:29]}  O-O-O {[%clk 0:00:59]} 15. Bxd6 {[%clk 0:02:25]}  Qxd6 {[%clk 0:00:59]} 16. Nxh8 {[%clk 0:02:25]}  Rxh8 {[%clk 0:00:59]} 17. O-O-O {[%clk 0:02:17]}  a5 {[%clk 0:00:52]} 18. Kb1 {[%clk 0:02:05]}  a4 {[%clk 0:00:51]} 19. Ne4 {[%clk 0:02:04]}  Nxe4 {[%clk 0:00:51]} 20. Qxe4 {[%clk 0:02:05]}  a3 {[%clk 0:00:50]} 21. b3 {[%clk 0:02:04]}  Kb7 {[%clk 0:00:48]} 22. c3 {[%clk 0:02:02]}  Rf8 {[%clk 0:00:46]} 23. f3 {[%clk 0:01:57]}  Rf4 {[%clk 0:00:44]} 24. Qe3 {[%clk 0:01:57]}  Nb6 {[%clk 0:00:34]} 25. Qe5 {[%clk 0:01:18]}  Qxe5 {[%clk 0:00:30]} 26. dxe5 {[%clk 0:01:18]}  Rxf3 {[%clk 0:00:23]} 27. Rhf1 {[%clk 0:01:18]}  Rg3 {[%clk 0:00:20]} 28. Rf7+ {[%clk 0:01:08]}  Kc8 {[%clk 0:00:20]} 29. Rd6 {[%clk 0:00:57]}  Rg1+ {[%clk 0:00:18]} 30. Kc2 {[%clk 0:00:57]}  Rg2+ {[%clk 0:00:18]} 31. Kd3 {[%clk 0:00:57]}  Rg3+ {[%clk 0:00:17]} 32. Kd4 {[%clk 0:00:49]}  Rxg4+ {[%clk 0:00:13]} 33. Kc5 {[%clk 0:00:48]}  Nd5 {[%clk 0:00:14]} 34. Kxc6 {[%clk 0:00:37]}  Rg3 {[%clk 0:00:12]} 35. Rf8# {[%clk 0:00:37]} 1-0

[Event "January 9 Late 2024"]
[Site "https://www.chess.com"]
[Date "2024.01.09"]
[Round "10"]
[White "Ibadov, Dashgyn"]
[Black "Bueno, Alfeu Junior Varela"]
[Result "1-0"]
[Board "105"]
[TimeControl "180+1"]
[WhiteFideId "24107514"]
[BlackFideId "2108879"]
[WhiteElo "2602"]
[BlackElo "2380"]
[WhiteTeam "FID"]
[BlackTeam "BRA"]
[WhiteClock "0:00:24"]
[BlackClock "0:00:03"]

1. e4 {[%clk 0:03:00]}  e6 {[%clk 0:02:58]} 2. d4 {[%clk 0:03:00]}  d5 {[%clk 0:02:58]} 3. Nc3 {[%clk 0:03:00]}  Nf6 {[%clk 0:02:59]} 4. e5 {[%clk 0:02:59]}  Nfd7 {[%clk 0:02:59]} 5. Nce2 {[%clk 0:03:00]}  c5 {[%clk 0:02:59]} 6. c3 {[%clk 0:03:01]}  Nc6 {[%clk 0:03:00]} 7. Nf3 {[%clk 0:03:01]}  cxd4 {[%clk 0:02:45]} 8. cxd4 {[%clk 0:03:00]}  f6 {[%clk 0:02:45]} 9. Nf4 {[%clk 0:02:49]}  Bb4+ {[%clk 0:02:42]} 10. Bd2 {[%clk 0:02:50]}  Qe7 {[%clk 0:02:33]} 11. Bxb4 {[%clk 0:02:49]}  Qxb4+ {[%clk 0:02:33]} 12. Qd2 {[%clk 0:02:50]}  Qe7 {[%clk 0:02:24]} 13. Bb5 {[%clk 0:02:48]}  O-O {[%clk 0:02:23]} 14. Bxc6 {[%clk 0:02:39]}  bxc6 {[%clk 0:02:24]} 15. O-O {[%clk 0:02:38]}  fxe5 {[%clk 0:01:56]} 16. dxe5 {[%clk 0:02:33]}  Rb8 {[%clk 0:01:29]} 17. Nd4 {[%clk 0:02:21]}  Nxe5 {[%clk 0:01:22]} 18. Rae1 {[%clk 0:02:18]}  Nc4 {[%clk 0:00:23]} 19. Qc1 {[%clk 0:02:15]}  Qd6 {[%clk 0:00:10]} 20. Nfxe6 {[%clk 0:02:14]}  Bxe6 {[%clk 0:00:09]} 21. Rxe6 {[%clk 0:02:13]}  Qc5 {[%clk 0:00:08]} 22. Nxc6 {[%clk 0:02:12]}  Rxb2 {[%clk 0:00:08]} 23. Ne7+ {[%clk 0:01:42]}  Kh8 {[%clk 0:00:07]} 24. Rc6 {[%clk 0:01:15]}  Qd4 {[%clk 0:00:05]} 25. Nf5 {[%clk 0:01:03]}  Qe5 {[%clk 0:00:04]} 26. Ng3 {[%clk 0:00:43]}  Rxa2 {[%clk 0:00:04]} 27. Qb1 {[%clk 0:00:24]}  h6 {[%clk 0:00:03]} 28. Qxa2 {[%clk 0:00:24]} 1-0